bitfinex/quotes_SOLUSD_20240913
["timestamp","ask_amount","ask_price","bid_price","bid_amount"]
[1726195405327,23.776884,135.2,135.13,14.80324954]
[1726195405824,68.356884,135.2,135.13,14.80324954]
[1726195406127,68.356884,135.2,135.14,14.80324954]
[1726195407029,0.2484673,135.21,135.14,14.80324954]
[1726195407235,0.2484673,135.21,135.16,14.80324954]
[1726195408524,0.2484673,135.21,135.17,14.80324954]
[1726195409927,0.2484673,135.21,135.16,14.80324954]
[1726195414022,0.2484673,135.21,135.13,6.419]
[1726195414242,0.25098,135.2,135.14,20.0]
[1726195414413,24.027864,135.2,135.14,20.0]
[1726195414616,23.902374,135.2,135.14,20.0]
[1726195414915,23.902374,135.2,135.14,14.80324954]
[1726195415115,23.776884,135.2,135.14,14.80324954]
[1726195416236,24.0253513,135.21,135.14,14.80324954]
[1726195421535,98.2712513,135.21,135.14,14.80324954]
[1726195421742,0.25098,135.2,135.13,14.80324954]
[1726195423229,29.91748,135.2,135.13,14.80324954]
[1726195423745,23.776884,135.19,135.13,14.80324954]
[1726195423938,23.776884,135.19,135.12,20.0]
[1726195423939,69.454884,135.19,135.12,20.0]
[1726195424126,0.12549,135.18,135.12,20.0]
[1726195424450,0.25098,135.18,135.12,14.80324954]
[1726195431754,0.25098,135.18,135.13,14.80324954]
[1726195434536,0.25098,135.18,135.11,15.7123]
[1726195434743,0.25098,135.18,135.12,14.80324954]
[1726195436130,44.83098,135.18,135.12,14.80324954]
[1726195436332,62.057784,135.19,135.12,14.80324954]
[1726195436539,62.057784,135.19,135.13,14.80324954]
[1726195437552,39.787784,135.19,135.13,14.80324954]
[1726195438536,23.776884,135.2,135.15,14.80324954]
[1726195438857,24.0253513,135.21,135.15,14.80324954]
[1726195441448,53.6912513,135.21,135.14,14.80324954]
[1726195441655,0.25098,135.2,135.14,14.80324954]
[1726195443157,0.25098,135.2,135.15,14.80324954]
[1726195447240,0.12549,135.2,135.15,14.80324954]
[1726195450639,0.12549,135.2,135.12,20.0]
[1726195450840,0.12549,135.2,135.14,14.80324954]
[1726195458078,0.12549,135.2,135.11,15.7123]
[1726195458276,0.12549,135.2,135.15,14.80324954]
[1726195461164,0.12549,135.2,135.16,14.80324954]
[1726195461497,24.0253513,135.21,135.16,14.80324954]
[1726195462593,24.0253513,135.21,135.15,14.80324954]
[1726195464993,0.2484673,135.21,135.15,14.80324954]
[1726195466896,23.776884,135.2,135.15,14.80324954]
[1726195467188,0.2484673,135.21,135.15,14.80324954]
[1726195470895,0.2484673,135.21,135.14,14.80324954]
[1726195473490,0.2484673,135.21,135.15,14.80324954]
[1726195479487,0.2484673,135.21,135.17,14.80324954]
[1726195479699,0.2484673,135.21,135.19,14.80324954]
[1726195487683,0.2484673,135.21,135.2,14.80324954]
[1726195500397,0.2484673,135.21,135.2,34.80324954]
[1726195502414,0.2484673,135.21,135.2,20.0]
[1726195502624,0.2484673,135.21,135.2,34.80324954]
[1726195505607,0.2484673,135.21,135.15,21.6015]
[1726195505810,0.2484673,135.21,135.18,14.80324954]
[1726195508122,0.2484673,135.21,135.19,14.80324954]
[1726195512218,0.2484673,135.21,135.16,20.0]
[1726195512426,0.2484673,135.21,135.18,20.0]
[1726195512806,0.2484673,135.21,135.18,14.80324954]
[1726195514422,0.2484673,135.21,135.18,20.0]
[1726195517408,0.2484673,135.21,135.17,14.80324954]
[1726195519428,0.2484673,135.21,135.16,34.80324954]
[1726195522636,0.2484673,135.21,135.16,20.0]
[1726195525212,0.2484673,135.21,135.15,15.5411]
[1726195525414,0.2484673,135.21,135.13,20.0]
[1726195525620,23.776884,135.19,135.12,21.7724]
[1726195525831,23.776884,135.19,135.12,36.57564954]
[1726195526736,23.776884,135.19,135.13,14.80324954]
[1726195527142,23.776884,135.19,135.12,14.80324954]
[1726195527434,0.12549,135.18,135.12,14.80324954]
[1726195538748,0.25098,135.18,135.12,14.80324954]
[1726195539323,0.25098,135.18,135.08,6.6175]
[1726195539324,46.036884,135.17,135.1,20.0]
[1726195539535,0.25098,135.16,135.1,34.80324954]
[1726195544334,0.25098,135.16,135.09,20.0]
[1726195544534,0.25098,135.16,135.1,14.80324954]
[1726195550959,0.25098,135.16,135.11,14.80324954]
[1726195552558,0.25098,135.16,135.1,14.80324954]
[1726195553348,23.776884,135.15,135.1,14.80324954]
[1726195553655,0.25098,135.16,135.1,14.80324954]
[1726195559768,0.25098,135.16,135.09,20.0]
[1726195560074,0.25098,135.16,135.1,20.0]
[1726195561372,46.036884,135.14,135.07,0.2484673]
[1726195561547,0.12549,135.13,135.07,0.2484673]
[1726195562854,0.12549,135.13,135.07,20.2484673]
[1726195563062,0.25098,135.13,135.07,20.2484673]
[1726195565571,0.25098,135.13,135.07,0.2484673]
[1726195565878,0.25098,135.13,135.07,20.2484673]
[1726195567772,0.25098,135.13,135.07,0.2484673]
[1726195570376,0.25098,135.13,135.07,15.05171684]
[1726195570988,43.8725,135.14,135.09,14.80324954]
[1726195571185,55.70461467,135.22,135.11,14.80324954]
[1726195571186,22.5683,135.17,135.11,14.80324954]
[1726195571360,22.5683,135.17,135.07,15.9880673]
[1726195571361,22.5683,135.17,135.12,14.80324954]
[1726195573679,23.902374,135.16,135.12,14.80324954]
[1726195573868,23.902374,135.16,135.11,14.80324954]
[1726195575391,23.902374,135.16,135.1,14.80324954]
[1726195582291,23.902374,135.16,135.11,14.80324954]
[1726195586675,23.902374,135.16,135.1,14.80324954]
[1726195591699,23.902374,135.16,135.1,20.0]
[1726195592199,0.12549,135.15,135.1,20.0]
[1726195592910,0.12549,135.15,135.08,14.80324954]
[1726195593080,0.12549,135.15,135.07,30.79131684]
[1726195593280,22.26,135.14,135.07,0.2484673]
[1726195593524,23.902374,135.13,135.07,0.2484673]
[1726195594509,23.902374,135.13,135.07,20.2484673]
[1726195596201,23.902374,135.13,135.07,0.2484673]
[1726195596403,15.3779,135.12,135.07,0.2484673]
[1726195596578,24.027864,135.11,135.07,0.2484673]
[1726195598409,53.689264,135.11,135.07,0.2484673]
[1726195598613,46.287864,135.11,135.07,0.2484673]
[1726195599713,24.027864,135.11,135.07,0.2484673]
[1726195601030,23.776884,135.11,135.07,0.2484673]
[1726195608597,15.3779,135.12,135.07,15.05171684]
[1726195612327,23.776884,135.12,135.07,15.05171684]
[1726195613701,6.4489,135.13,135.07,15.05171684]
[1726195613908,22.38549,135.14,135.07,15.05171684]
[1726195614105,23.902374,135.13,135.07,15.05171684]
[1726195614409,0.12549,135.13,135.08,14.80324954]
[1726195614720,23.776884,135.14,135.08,14.80324954]
[1726195617220,23.776884,135.14,135.09,14.80324954]
[1726195618534,15.76479,135.15,135.09,14.80324954]
[1726195618919,23.902374,135.15,135.09,14.80324954]
[1726195619223,0.12549,135.15,135.09,14.80324954]
[1726195621326,0.12549,135.15,135.08,30.64074954]
[1726195622927,7.52479,135.15,135.08,30.64074954]
[1726195623131,24.027864,135.14,135.08,15.8375]
[1726195626128,53.687664,135.14,135.08,15.8375]
[1726195626319,53.687664,135.14,135.07,20.2484673]
[1726195626725,46.287864,135.14,135.07,35.05171684]
[1726195626927,46.287864,135.14,135.08,14.80324954]
[1726195628210,23.776884,135.16,135.1,14.80324954]
[1726195628415,0.25098,135.15,135.1,14.80324954]
[1726195629116,0.25098,135.15,135.09,14.80324954]
[1726195635821,0.25098,135.15,135.1,14.80324954]
[1726195636031,0.12549,135.15,135.1,14.80324954]
[1726195636227,16.2975,135.18,135.12,14.80324954]
[1726195638637,23.902374,135.17,135.11,14.80324954]
[1726195638814,23.902374,135.17,135.1,34.80324954]
[1726195639010,23.902374,135.17,135.1,14.80324954]
[1726195640019,23.776884,135.17,135.11,14.80324954]
[1726195648645,23.776884,135.17,135.1,34.80324954]
[1726195648939,53.434984,135.17,135.1,20.0]
[1726195649151,0.25098,135.16,135.1,20.0]
[1726195649937,29.90958,135.16,135.09,16.0464]
[1726195650149,23.776884,135.15,135.09,16.0464]
[1726195654361,23.776884,135.15,135.09,30.84964954]
[1726195656033,23.776884,135.15,135.08,20.96544954]
[1726195656236,23.776884,135.15,135.09,20.0]
[1726195657123,0.12549,135.14,135.09,20.0]
[1726195657550,0.12549,135.14,135.07,20.2484673]
[1726195657744,23.776884,135.13,135.07,35.05171684]
[1726195661658,23.776884,135.13,135.07,20.2484673]
[1726195661841,23.776884,135.13,135.08,14.80324954]
[1726195663656,24.027864,135.14,135.08,14.80324954]
[1726195663858,68.547864,135.14,135.08,14.80324954]
[1726195664157,24.027864,135.14,135.08,14.80324954]
[1726195665544,46.287864,135.14,135.08,14.80324954]
[1726195666865,46.287864,135.14,135.07,35.05171684]
[1726195668845,46.287864,135.14,135.08,14.80324954]
[1726195669245,0.12549,135.14,135.09,14.80324954]
[1726195671241,0.12549,135.14,135.08,14.80324954]
[1726195674554,23.776884,135.15,135.09,14.80324954]
[1726195674860,16.2975,135.18,135.11,14.80324954]
[1726195676342,0.12549,135.17,135.11,14.80324954]
[1726195677164,23.902374,135.17,135.11,14.80324954]
[1726195682177,23.902374,135.17,135.1,34.80324954]
[1726195689274,23.902374,135.17,135.1,49.87684954]
[1726195692073,23.902374,135.17,135.11,14.80324954]
[1726195694257,68.422374,135.17,135.11,14.80324954]
[1726195694583,23.902374,135.17,135.11,14.80324954]
[1726195701782,23.902374,135.17,135.1,49.87684954]
[1726195703587,39.0166673,135.21,135.13,26.2337]
[1726195703762,29.9047673,135.21,135.14,30.00464954]
[1726195703967,29.9047673,135.21,135.14,15.2014]
[1726195704968,24.027864,135.2,135.14,15.2014]
[1726195707794,23.776884,135.2,135.14,30.00464954]
[1726195708088,24.0253513,135.21,135.15,14.80324954]
[1726195711695,24.0253513,135.21,135.14,30.00464954]
[1726195714194,31.4212513,135.21,135.14,30.00464954]
[1726195715771,0.25098,135.2,135.14,30.00464954]
[1726195715979,23.776884,135.19,135.14,15.2014]
[1726195716194,31.173884,135.19,135.14,15.2014]
[1726195716386,0.25098,135.18,135.14,15.2014]
[1726195722470,23.776884,135.19,135.14,15.2014]
[1726195730414,23.902374,135.2,135.14,15.2014]
[1726195730706,0.12549,135.19,135.14,15.2014]
[1726195740320,23.776884,135.2,135.14,30.00464954]
[1726195741411,24.0253513,135.21,135.14,30.00464954]
[1726195741892,31.4212513,135.21,135.14,30.00464954]
[1726195744700,31.4212513,135.21,135.14,15.2014]
[1726195747432,24.0253513,135.21,135.15,14.80324954]
[1726195747726,24.0253513,135.21,135.14,30.00464954]
[1726195748324,23.776884,135.2,135.14,30.00464954]
[1726195748929,31.173484,135.2,135.14,15.2014]
[1726195749135,0.12549,135.19,135.14,15.2014]
[1726195749737,0.25098,135.19,135.14,15.2014]
[1726195751808,0.12549,135.19,135.14,15.2014]
[1726195752436,23.776884,135.2,135.14,15.2014]
[1726195752607,23.776884,135.2,135.14,30.00464954]
[1726195753022,23.776884,135.2,135.15,6.581]
[1726195754327,24.1508413,135.21,135.15,6.581]
[1726195755014,98.3271413,135.21,135.15,6.581]
[1726195755207,24.027864,135.2,135.15,6.581]
[1726195757435,31.424264,135.2,135.15,6.581]
[1726195758226,23.776884,135.18,135.15,6.581]
[1726195758410,31.424264,135.2,135.15,6.581]
[1726195759230,24.027864,135.2,135.15,6.581]
[1726195759532,0.25098,135.2,135.15,21.38424954]
[1726195759735,24.0253513,135.21,135.16,16.6258]
[1726195759909,0.2484673,135.21,135.16,31.42904954]
[1726195768449,0.2484673,135.21,135.18,22.0817]
[1726195768647,0.2484673,135.21,135.18,36.88494954]
[1726195770039,0.2484673,135.21,135.19,14.80324954]
[1726195771433,0.2484673,135.21,135.2,30.02434954]
[1726195771752,0.2484673,135.21,135.2,15.2211]
[1726195776849,0.3739573,135.21,135.18,6.3606]
[1726195778146,0.2484673,135.21,135.18,6.3606]
[1726195785662,0.2484673,135.21,135.18,21.16384954]
[1726195795442,0.2484673,135.21,135.18,6.3606]
[1726195800871,0.2484673,135.21,135.16,15.9651]
[1726195803741,0.2484673,135.21,135.16,30.76834954]
[1726195804171,0.2484673,135.21,135.16,15.9651]
[1726195804466,0.2484673,135.21,135.14,20.0]
[1726195804672,24.027864,135.2,135.14,20.0]
[1726195804842,24.027864,135.2,135.13,31.09064954]
[1726195805046,68.547864,135.2,135.13,31.09064954]
[1726195806474,68.547864,135.2,135.14,20.0]
[1726195817659,75.944364,135.2,135.13,14.80324954]
[1726195817981,68.547864,135.2,135.13,14.80324954]
[1726195818977,75.944264,135.2,135.13,14.80324954]
[1726195820259,7.397,135.19,135.12,14.80324954]
[1726195820460,31.299874,135.18,135.11,20.0]
[1726195820677,0.12549,135.17,135.11,20.0]
[1726195821158,0.12549,135.17,135.11,34.80324954]
[1726195821869,0.12549,135.17,135.12,14.80324954]
[1726195822071,23.902374,135.18,135.12,14.80324954]
[1726195824490,23.902374,135.18,135.13,14.80324954]
[1726195824696,23.776884,135.18,135.13,14.80324954]
[1726195827189,23.776884,135.18,135.12,14.80324954]
[1726195827389,0.25098,135.17,135.11,20.0]
[1726195836389,23.776884,135.16,135.11,20.0]
[1726195838885,0.12549,135.15,135.1,15.1973]
[1726195839087,0.12549,135.15,135.1,20.0]
[1726195839598,0.12549,135.15,135.09,6.3314]
[1726195839808,0.25098,135.15,135.07,31.16941684]
[1726195840904,0.25098,135.15,135.08,20.0]
[1726195843809,0.25098,135.15,135.08,34.80324954]
[1726195846396,23.776884,135.14,135.08,34.80324954]
[1726195846715,0.12549,135.13,135.08,20.0]
[1726195847005,23.902374,135.14,135.08,34.80324954]
[1726195847314,23.776884,135.14,135.09,14.80324954]
[1726195848591,0.12549,135.15,135.1,14.80324954]
[1726195849795,23.776884,135.17,135.1,14.80324954]
[1726195850312,0.12549,135.16,135.1,14.80324954]
[1726195853407,0.12549,135.16,135.11,14.80324954]
[1726195854296,16.5856,135.19,135.13,14.80324954]
[1726195855199,50.2484673,135.21,135.13,14.80324954]
[1726195855200,52.1744673,135.21,135.13,14.80324954]
[1726195855583,23.902374,135.2,135.13,14.80324954]
[1726195855786,0.12549,135.19,135.13,14.80324954]
[1726195857120,0.12549,135.19,135.12,14.80324954]
[1726195858809,0.12549,135.19,135.13,14.80324954]
[1726195860499,0.12549,135.19,135.12,14.80324954]
[1726195861500,23.776884,135.18,135.11,30.23164954]
[1726195861825,0.12549,135.17,135.11,30.23164954]
[1726195862007,0.12549,135.17,135.12,14.80324954]
[1726195864299,0.12549,135.17,135.11,30.23164954]
[1726195865817,0.25098,135.17,135.11,15.4284]
[1726195866027,0.25098,135.17,135.11,30.23164954]
[1726195866237,0.25098,135.17,135.11,15.4284]
[1726195866421,23.776884,135.16,135.11,15.4284]
[1726195874927,23.776884,135.16,135.1,14.80324954]
[1726195875322,23.776884,135.16,135.1,20.0]
[1726195875711,0.25098,135.15,135.09,20.0]
[1726195876531,23.776884,135.14,135.09,20.0]
[1726195876837,0.25098,135.15,135.09,20.0]
[1726195878839,23.776884,135.14,135.09,20.0]
[1726195879043,0.12549,135.13,135.08,16.538]
[1726195879340,23.902374,135.15,135.08,16.538]
[1726195879634,0.12549,135.14,135.08,16.538]
[1726195881447,0.12549,135.14,135.08,31.34124954]
[1726195886622,23.776884,135.13,135.08,31.34124954]
[1726195886947,0.12549,135.14,135.08,31.34124954]
[1726195896257,0.12549,135.14,135.08,16.538]
[1726195896758,23.776884,135.13,135.08,16.538]
[1726195898751,0.25098,135.12,135.07,0.2484673]
[1726195900736,0.12549,135.12,135.07,15.05171684]
[1726195914256,29.6593,135.15,135.08,31.17554954]
[1726195914573,24.027864,135.14,135.08,31.17554954]
[1726195918272,23.902374,135.14,135.09,21.17204954]
[1726195918478,0.12549,135.14,135.09,21.17204954]
[1726195921454,0.12549,135.14,135.09,6.3688]
[1726195942983,23.776884,135.16,135.09,21.17204954]
[1726195943491,0.12549,135.15,135.1,14.80324954]
[1726195949195,0.12549,135.15,135.09,21.17204954]
[1726195949501,0.12549,135.15,135.09,6.3688]
[1726195949701,0.12549,135.15,135.09,21.17204954]
[1726195950506,0.25098,135.15,135.09,6.3688]
[1726195951679,7.65048,135.15,135.09,6.3688]
[1726195951880,23.776884,135.14,135.09,6.3688]
[1726195952211,97.968184,135.12,135.08,16.3723]
[1726195952387,7.52689,135.11,135.07,0.2484673]
[1726195952595,23.776884,135.1,135.07,0.2484673]
[1726195952791,0.25098,135.09,135.07,0.2484673]
[1726195954913,7.65348,135.09,135.07,0.2484673]
[1726195955200,23.776884,135.08,135.07,0.2484673]
[1726195955396,23.902374,135.08,135.07,0.2484673]
[1726195955598,24.027864,135.08,135.07,0.2484673]
[1726195956212,53.690864,135.08,135.07,0.2484673]
[1726195956592,31.430864,135.08,135.07,0.2484673]
[1726195960707,53.690864,135.08,135.07,0.2484673]
[1726195961384,31.430864,135.08,135.07,0.2484673]
[1726195962992,75.960864,135.08,135.07,0.2484673]
[1726195966515,98.220864,135.08,135.07,0.2484673]
[1726195983717,75.960864,135.08,135.07,0.2484673]
[1726195986205,98.220864,135.08,135.07,0.2484673]
[1726195987231,75.960864,135.08,135.07,0.2484673]
[1726195987730,24.027864,135.08,135.07,0.2484673]
[1726195988034,7.4009,135.12,135.07,0.2484673]
[1726195988414,29.6609,135.12,135.07,0.2484673]
[1726195988640,7.4009,135.12,135.07,0.2484673]
[1726195989228,7.4014,135.11,135.07,0.2484673]
[1726195989925,23.776884,135.1,135.07,0.2484673]
[1726195991035,7.4009,135.12,135.07,0.2484673]
[1726195992434,24.027864,135.11,135.07,0.2484673]
[1726196000123,7.65238,135.11,135.07,0.2484673]
[1726196000526,23.776884,135.1,135.07,0.2484673]
[1726196006051,23.776884,135.1,135.08,15.2785]
[1726196013562,23.902374,135.11,135.08,15.2785]
[1726196013938,0.12549,135.11,135.08,15.2785]
[1726196026973,23.776884,135.1,135.08,15.2785]
[1726196027470,0.12549,135.11,135.08,15.2785]
[1726196038559,23.776884,135.09,135.07,0.2484673]
[1726196040070,7.65248,135.11,135.07,0.2484673]
[1726196040071,24.027864,135.11,135.07,0.2484673]
[1726196040380,51.9299,135.14,135.07,15.05171684]
[1726196040561,44.53,135.14,135.07,15.05171684]
[1726196040767,0.12549,135.13,135.07,15.05171684]
[1726196040968,0.12549,135.14,135.07,15.05171684]
[1726196041159,7.52529,135.14,135.07,15.05171684]
[1726196041482,23.776884,135.13,135.07,15.05171684]
[1726196042270,0.12549,135.12,135.07,15.05171684]
[1726196043779,23.776884,135.11,135.07,15.05171684]
[1726196043961,0.12549,135.12,135.07,15.05171684]
[1726196046285,0.12549,135.12,135.07,0.2484673]
[1726196047087,23.776884,135.11,135.07,0.2484673]
[1726196047486,0.12549,135.12,135.07,0.2484673]
[1726196053389,23.902374,135.14,135.08,22.1108]
[1726196053691,0.12549,135.13,135.08,22.1108]
[1726196058595,0.12549,135.13,135.08,36.91404954]
[1726196059887,23.902374,135.14,135.08,36.91404954]
[1726196064309,23.902374,135.14,135.09,14.80324954]
[1726196064477,23.776884,135.14,135.09,14.80324954]
[1726196071207,50.997829,135.2,135.08,22.1108]
[1726196071208,313.0448673,135.21,135.13,6.129]
[1726196071416,0.2484673,135.21,135.14,15.4793]
[1726196071594,0.2484673,135.21,135.15,14.80324954]
[1726196071906,0.2484673,135.21,135.16,14.80324954]
[1726196072287,0.2484673,135.21,135.15,14.80324954]
[1726196073792,24.0253513,135.21,135.15,14.80324954]
[1726196075688,0.12549,135.2,135.14,15.4793]
[1726196075899,0.25098,135.2,135.14,15.4793]
[1726196077290,23.776884,135.19,135.14,15.4793]
[1726196078720,0.12549,135.18,135.14,15.4793]
[1726196084002,23.776884,135.17,135.14,15.4793]
[1726196084322,90.576884,135.17,135.14,15.4793]
[1726196096325,66.8,135.17,135.14,15.4793]
[1726196103735,66.8,135.15,135.1,22.5966]
[1726196103998,24.027864,135.16,135.1,22.5966]
[1726196103999,90.576884,135.14,135.1,22.5966]
[1726196104264,44.53,135.14,135.1,37.39984954]
[1726196104843,66.8,135.15,135.1,37.39984954]
[1726196111571,23.776884,135.14,135.1,37.39984954]
[1726196111775,90.576884,135.14,135.1,37.39984954]
[1726196117850,90.576884,135.14,135.1,22.5966]
[1726196120274,0.25098,135.13,135.1,15.9916]
[1726196120650,0.25098,135.13,135.07,22.0526673]
[1726196126277,66.8,135.12,135.07,22.0526673]
[1726196126467,90.576884,135.11,135.07,22.0526673]
[1726196139766,44.53,135.11,135.07,22.0526673]
[1726196140091,90.576884,135.12,135.07,22.0526673]
[1726196157493,90.576884,135.12,135.07,0.2484673]
[1726196157494,68.306884,135.1,135.07,0.2484673]
[1726196157725,90.576884,135.08,135.07,0.2484673]
[1726196166703,97.979884,135.08,135.07,0.2484673]
[1726196167826,90.576884,135.08,135.07,0.2484673]
[1726196168402,97.979884,135.08,135.07,0.2484673]
[1726196168599,98.230864,135.08,135.07,0.2484673]
[1726196171546,90.827864,135.08,135.07,0.2484673]
[1726196171734,90.576884,135.08,135.07,0.2484673]
[1726196183636,97.979884,135.08,135.07,0.2484673]
[1726196183842,98.105374,135.08,135.07,0.2484673]
[1726196186311,98.230864,135.08,135.07,0.2484673]
[1726196195946,66.8,135.04,135.03,0.2484673]
[1726196196123,90.702374,135.04,135.03,0.2484673]
[1726196197449,98.107574,135.04,135.03,0.2484673]
[1726196198450,98.233064,135.04,135.03,0.2484673]
[1726196201449,90.827864,135.04,135.03,0.2484673]
[1726196202733,90.702374,135.04,135.03,0.2484673]
[1726196206856,98.107574,135.04,135.03,0.2484673]
[1726196208067,90.702374,135.04,135.03,0.2484673]
[1726196212448,98.107574,135.04,135.03,0.2484673]
[1726196224746,98.233064,135.04,135.03,0.2484673]
[1726196230970,98.107574,135.04,135.03,0.2484673]
[1726196231169,74.2052,135.04,135.03,0.2484673]
[1726196232479,97.982084,135.04,135.03,0.2484673]
[1726196232683,98.233064,135.04,135.03,0.2484673]
[1726196235177,90.827864,135.04,135.03,0.2484673]
[1726196235388,66.8,135.04,135.03,0.2484673]
[1726196235555,7.4037,135.07,135.03,0.2484673]
[1726196235556,66.8,135.05,135.03,0.2484673]
[1726196236653,44.53,135.05,135.03,0.2484673]
[1726196236859,66.8,135.06,135.03,0.2484673]
[1726196237555,68.306884,135.05,135.03,0.2484673]
[1726196238565,66.8,135.07,135.03,0.2484673]
[1726196238772,23.776884,135.06,135.03,0.2484673]
[1726196246824,46.046884,135.06,135.03,0.2484673]
[1726196248108,44.53,135.05,135.03,0.2484673]
[1726196265924,23.776884,135.06,135.03,0.2484673]
[1726196266096,97.999984,135.08,135.03,15.05171684]
[1726196266399,97.999984,135.08,135.03,0.2484673]
[1726196275434,97.999984,135.08,135.04,15.5146]
[1726196280514,66.82,135.06,135.03,0.2484673]
[1726196280717,68.326884,135.05,135.03,0.2484673]
[1726196280913,98.001884,135.05,135.03,0.2484673]
[1726196285620,98.002084,135.04,135.03,0.2484673]
[1726196286916,98.127574,135.04,135.03,0.2484673]
[1726196292326,98.253064,135.04,135.03,0.2484673]
[1726196295242,98.127574,135.04,135.03,0.2484673]
[1726196296827,66.82,135.04,135.03,0.2484673]
[1726196298549,90.596884,135.04,135.03,0.2484673]
[1726196299828,23.776884,135.05,135.03,0.2484673]
[1726196300126,68.326884,135.05,135.03,0.2484673]
[1726196300749,51.954,135.07,135.03,0.2484673]
[1726196301055,66.82,135.07,135.03,0.2484673]
[1726196302124,23.776884,135.06,135.03,0.2484673]
[1726196302823,68.326884,135.06,135.03,0.2484673]
[1726196312471,90.596884,135.06,135.03,0.2484673]
[1726196324239,44.55,135.04,135.03,0.2484673]
[1726196324561,68.326884,135.04,135.03,0.2484673]
[1726196328170,90.596884,135.04,135.03,0.2484673]
[1726196330768,98.002084,135.04,135.03,0.2484673]
[1726196331678,98.127574,135.04,135.03,0.2484673]
[1726196332547,98.253064,135.04,135.03,0.2484673]
[1726196333458,98.127574,135.04,135.03,0.2484673]
[1726196341284,98.253064,135.04,135.03,0.2484673]
[1726196370987,74.2252,135.04,135.03,0.2484673]
[1726196372197,74.35069,135.04,135.03,0.2484673]
[1726196372499,98.253064,135.04,135.03,0.2484673]
[1726196375215,98.127574,135.04,135.03,0.2484673]
[1726196376490,74.2252,135.04,135.03,0.2484673]
[1726196377304,66.82,135.04,135.03,0.2484673]
[1726196377899,90.596884,135.04,135.03,0.2484673]
[1726196379627,98.002084,135.04,135.03,0.2484673]
[1726196380812,98.127574,135.04,135.03,0.2484673]
[1726196381730,98.002084,135.04,135.03,0.2484673]
[1726196395732,98.253064,135.04,135.03,0.2484673]
[1726196425959,7.4074,135.0,134.99,0.2484673]
[1726196426158,98.255264,135.0,134.99,0.2484673]
[1726196438267,74.2274,135.0,134.99,0.2484673]
[1726196439447,98.004284,135.0,134.99,0.2484673]
[1726196439671,44.55,135.0,134.99,0.2484673]
[1726196439873,44.55,135.02,134.99,0.2484673]
[1726196440184,44.55,135.02,135.0,6.1688]
[1726196440863,44.55,135.03,135.0,6.1688]
[1726196441270,44.55,135.03,135.01,15.8446]
[1726196441751,7.4047,135.05,135.01,15.8446]
[1726196441752,44.55,135.04,135.01,15.8446]
[1726196443170,23.776884,135.03,135.01,15.8446]
[1726196443867,98.022784,135.03,135.01,15.8446]
[1726196444551,51.9563,135.02,135.01,15.8446]
[1726196444757,68.326884,135.01,134.99,0.2484673]
[1726196445654,90.616884,135.01,134.99,0.2484673]
[1726196446458,98.023784,135.01,134.99,0.2484673]
[1726196450258,0.12549,135.0,134.99,0.2484673]
[1726196450458,74.37289,135.0,134.99,0.2484673]
[1726196451058,98.149774,135.0,134.99,0.2484673]
[1726196451376,98.275264,135.0,134.99,0.2484673]
[1726196507444,66.84,135.0,134.99,0.2484673]
[1726196507629,44.55,135.0,134.99,0.2484673]
[1726196508850,44.55,135.02,134.99,0.2484673]
[1726196509531,68.326884,135.01,134.99,0.2484673]
[1726196512532,44.55,135.02,134.99,0.2484673]
[1726196513742,68.326884,135.02,134.99,0.2484673]
[1726196520345,0.12549,135.03,134.99,15.05171684]
[1726196520346,44.55,135.03,134.99,15.05171684]
[1726196522055,68.326884,135.04,134.99,15.05171684]
[1726196522259,44.55,135.04,135.0,29.86984954]
[1726196522558,44.55,135.04,135.02,6.6112]
[1726196522762,44.6,135.06,135.04,16.1331]
[1726196523055,44.6,135.07,135.04,16.1331]
[1726196524442,23.776884,135.06,135.04,16.1331]
[1726196524656,68.376884,135.06,135.04,16.1331]
[1726196524867,44.6,135.06,135.04,16.1331]
[1726196525535,44.6,135.08,135.04,16.1331]
[1726196526036,44.6,135.08,135.04,30.93634954]
[1726196526958,23.776884,135.07,135.04,30.93634954]
[1726196527167,44.6,135.09,135.05,14.80324954]